[Event "Sardinia World Festival-A 2024"]
[Site "Orosei"]
[Date "2024.04.28"]
[Round "2.10"]
[White "Zemach, Nadav"]
[Black "Huschenbeth, Niclas"]
[Result "0-1"]
[ECO "E05"]
[WhiteElo "2396"]
[BlackElo "2607"]
[Annotator "RC"]
[PlyCount "108"]
[EventDate "2024.04.26"]
[EventType "swiss"]
[EventCountry "ITA"]
[SourceTitle "playchess.com"]
[Source "ChessBase"]
[SourceQuality "1"]
[TimeControl "40/5400+30:1800+30"]

1. d4 {[%emt 0:00:02]} Nf6 {[%emt 0:02:14]} 2. c4 {[%emt 0:00:08]} e6 {[%emt 0:00:05]} 3. Nf3 {[%emt 0:00:30]} d5 {[%emt 0:00:08]} 4. g3 {[%emt 0:00:15]} Be7 {[%emt 0:00:07]} 5. Bg2 {[%emt 0:00:13]} O-O {[%emt 0:00:24]} 6. O-O {[%emt 0:00:23]} dxc4 {[%emt 0:00:13]} 7. Qc2 {[%emt 0:00:36]} b5 {[%emt 0:00:30]} 8. a4 {[%emt 0:00:14]} b4 {[%emt 0:00:20]} 9. Ne5 {[%emt 0:00:47]} Qxd4 {[%emt 0:00:16]} 10. Bxa8 {[%emt 0:00:14]} Qxe5 {[%emt 0:00:06]} 11. Bf4 {[%emt 0:00:50]} Qh5 {[%emt 0:00:27]} 12. Bf3 {[%emt 0:00:45]} Ng4 {[%emt 0:00:17]} 13. Bxg4 {[%emt 0:00:06]} Qxg4 {[%emt 0:00:04]} 14. Qxc4 {[%emt 0:00:11]} e5 {[%emt 0:00:45]} 15. Qxc7 {[%emt 0:00:09]} exf4 {[%emt 0:00:06]} 16. Qxe7 {[%emt 0:00:14]} fxg3 {[%emt 0:00:06]} 17. Nd2 {[%emt 0:00:10]} Nc6 {[%emt 0:09:16]} 18. Qe4 {[%emt 0:07:31]} gxf2+ {[%emt 0:00:15]} 19. Kxf2 {[%emt 0:03:02]} Qd7 {[%emt 0:00:14]} 20. Nf3 {[%emt 0:14:46]} Re8 {[%emt 0:05:14]} 21. Qc4 {[%emt 0:07:24]} Bb7 {[%emt 0:26:49]} 22. Rad1 {[%emt 0:08:17]} Qe7 {[%emt 0:02:07]} 23. Kg1 {[%emt 0:03:56]} h6 {[%emt 0:05:57]} 24. Rf2 {[%emt 0:07:09]} Nd8 {[%emt 0:08:40]} 25. Qd4 {[%emt 0:07:15]} Bxf3 {[%emt 0:09:40]} 26. exf3 {[%emt 0:00:31]} Ne6 {[%emt 0:00:14]} 27. Qe5 {[%emt 0:05:45]} Rc8 {[%emt 0:00:15]} 28. Rg2 {[%emt 0:05:49]} Qb7 {[%emt 0:04:29]} 29. Qe3 {[%emt 0:04:43]} a5 {[%emt 0:08:54]} 30. Kh1 {[%emt 0:10:17]} Qc6 {[%emt 0:00:27]} 31. Rdg1 {[%emt 0:03:52]} g6 {[%emt 0:10:22]} 32. f4 {[%emt 0:05:53]} Ng7 {[%emt 0:01:48]} 33. Qd3 {[%emt 0:01:24]} Kh7 {[%emt 0:01:44]} 34. b3 {[%emt 0:02:29]} Nf5 {[%emt 0:00:41]} 35. Qb5 {[%emt 0:01:01]} Qa8 {[%emt 0:02:03]} 36. Qd7 {[%emt 0:00:57]} Rf8 {[%emt 0:00:04]} 37. h3 {[%emt 0:00:39]} Qf3 {[%emt 0:01:13]} 38. Kh2 {[%emt 0:00:28]} Qxf4+ {[%emt 0:00:06]} 39. Kh1 {[%emt 0:00:03]} Qf3 {[%emt 0:01:27]} 40. Kh2 {[%emt 0:00:02]} Qf4+ {[%emt 0:00:39]} 41. Kh1 {[%emt 0:02:23]} Qe4 {[%emt 0:15:18]} 42. Kh2 {[%emt 0:06:23]} Qe5+ {[%emt 0:03:18]} 43. Kh1 {[%emt 0:00:15]} Qe3 {[%emt 0:05:05]} 44. Kh2 {[%emt 0:00:56]} Nh4 {[%emt 0:02:22]} 45. Qd6 {[%emt 0:05:13]} Kg7 {[%emt 0:02:06]} 46. Rg3 {[%emt 0:02:59]} Qe2+ {[%emt 0:00:31]} 47. Kh1 {[%emt 0:01:39]} Qe4+ {[%emt 0:00:08]} 48. Kh2 {[%emt 0:00:05]} Nf3+ {[%emt 0:00:22]} 49. Rxf3 {[%emt 0:00:16]} Qxf3 {[%emt 0:00:04]} 50. Qe5+ {[%emt 0:00:13]} Qf6 {[%emt 0:01:35]} 51. Qxa5 {[%emt 0:00:12]} Qf4+ {[%emt 0:01:25]} 52. Kh1 {[%emt 0:00:20]} Qf3+ {[%emt 0:00:34]} 53. Kh2 {[%emt 0:01:02]} Re8 {[%emt 0:01:15]} 54. Rg2 {[%emt 0:00:25]} Qf4+ {[%emt 0:00:09]} 0-1

[Event "Sardinia World Festival-A 2024"]
[Site "Orosei"]
[Date "2024.04.28"]
[Round "2.11"]
[White "Vergara Anton, Diego"]
[Black "Gurel, Ediz"]
[Result "1/2-1/2"]
[ECO "D46"]
[WhiteElo "2387"]
[BlackElo "2578"]
[Annotator "TA"]
[PlyCount "120"]
[EventDate "2024.04.26"]
[EventType "swiss"]
[EventCountry "ITA"]
[SourceTitle "playchess.com"]
[Source "ChessBase"]
[SourceQuality "1"]
[TimeControl "40/5400+30:1800+30"]

{[%evp 57,120,0,1,0,0,4,19,14,59,0,0,-14,-10,-10,-6,-12,-11,-18,-12,-17,-24,-19,-19,-13,0,0,0,0,-6,-7,0,0,0,-6,-6,0,0,0,0,0,0,0,0,0,0,0,0,0,0,0,0,0,0,0,0,0,0,0,0,0,0,0,0,0,0]} 1. Nf3 {[%emt 0:00:04]} d5 {[%emt 0:00:18]} 2. e3 {[%emt 0:00:09]} Nf6 {[%emt 0:00:17]} 3. c4 {[%emt 0:00:09]} e6 {[%emt 0:00:41]} 4. b3 {[%emt 0:00:32]} c6 {[%emt 0:01:36]} 5. Bb2 {[%emt 0:00:32]} Nbd7 {[%emt 0:01:02]} 6. Qc2 {[%emt 0:02:25]} Bd6 {[%emt 0:02:01]} 7. d4 {[%emt 0:01:05]} Qe7 {[%emt 0:02:57]} 8. Nc3 {[%emt 0:02:03]} O-O {[%emt 0:03:09]} 9. Bd3 {[%emt 0:00:43]} b6 {[%emt 0:04:47]} 10. O-O {[%emt 0:02:03]} Bb7 {[%emt 0:00:48]} 11. cxd5 {[%emt 0:06:08]} exd5 {[%emt 0:08:56]} 12. Rfe1 {[%emt 0:01:03]} Bb4 {[%emt 0:05:09]} 13. Nd2 {[%emt 0:05:19]} c5 {[%emt 0:05:15]} 14. a3 {[%emt 0:06:08]} Bxc3 {[%emt 0:00:30]} 15. Bxc3 {[%emt 0:00:11]} Rfe8 {[%emt 0:04:23]} 16. dxc5 {[%emt 0:04:29]} bxc5 {[%emt 0:00:07]} 17. Rac1 {[%emt 0:14:42]} Rac8 {[%emt 0:04:23]} 18. Nf3 {[%emt 0:08:43]} h6 {[%emt 0:08:26]} 19. Bf5 {[%emt 0:02:30]} Rc6 {[%emt 0:05:06]} 20. Qb2 {[%emt 0:02:00]} Ba8 {[%emt 0:11:42]} 21. Red1 {[%emt 0:04:18]} Nb6 {[%emt 0:02:08]} 22. Ne5 {[%emt 0:07:09]} Rd6 {[%emt 0:00:09]} 23. Nd3 {[%emt 0:01:34]} g6 {[%emt 0:00:26]} 24. Bxf6 {[%emt 0:05:08]} Rxf6 {[%emt 0:02:11]} 25. Bg4 {[%emt 0:01:35]} Rc6 {[%emt 0:08:01]} 26. Bf3 {[%emt 0:01:27]} Rc7 {[%emt 0:00:11]} 27. a4 {[%emt 0:03:01]} g5 {[%emt 0:06:09]} 28. a5 {[%emt 0:02:56]} Nc8 {[%emt 0:00:37]} 29. Qa3 {[%emt 0:01:36]} c4 {[%emt 0:00:54]} 30. Qxe7 {[%emt 0:02:13]} Nxe7 {[%emt 0:00:38]} 31. Nb4 {[%emt 0:01:07]} Rec8 {[%emt 0:02:17]} 32. bxc4 {[%emt 0:01:56]} (32. Nxd5 $2 Bxd5 33. bxc4 Bxf3 (33... Bxc4 $2 34. Rb1 $19) (33... Rxc4 $2 34. Rxc4 Rxc4 35. Be2 $19) 34. gxf3 Rxc4 35. Rxc4 Rxc4 $19) 32... dxc4 {[%emt 0:00:37]} 33. Bxa8 {[%emt 0:00:20]} ({White should try} 33. Bg4 $1 $14 f5 34. Be2) 33... Rxa8 $11 {[%emt 0:00:01]} 34. Nd5 {[%emt 0:02:28]} Nxd5 {[%emt 0:00:05]} 35. Rxd5 {[%emt 0:00:02]} Rb8 {[%emt 0:02:16]} 36. Kf1 {[%emt 0:00:36]} Rb2 {[%emt 0:02:21]} 37. h4 {[%emt 0:02:14]} gxh4 {[%emt 0:02:20]} 38. Rd4 {[%emt 0:00:18]} c3 {[%emt 0:00:06]} 39. Rxh4 {[%emt 0:01:15]} Rc5 {[%emt 0:01:27]} 40. g3 {[%emt 0:02:56]} Kg7 {[%emt 0:03:13]} 41. Rg4+ {[%emt 0:33:25]} Kf6 {[%emt 0:30:33]} 42. Rf4+ {[%emt 0:00:00]} Ke6 {[%emt 0:00:00]} 43. Re4+ {[%emt 0:00:00]} Kd6 {[%emt 0:00:00]} 44. Rd4+ {[%emt 0:00:00]} Kc6 {[%emt 0:00:00]} 45. Rd8 {[%emt 0:00:00]} Rb3 {[%emt 0:00:00]} (45... Rxa5 $2 46. Rxc3+ Kb7 47. Rd7+ Ka6 48. Rcc7 $18 (48. Rxf7 Rb7 $18)) 46. Ke2 {[%emt 0:00:00]} Kb5 {[%emt 0:00:00]} 47. Kd3 {[%emt 0:00:00]} c2+ {[%emt 0:00:00]} (47... Kxa5 $2 48. Ra1+ Kb4 49. Rb8+ Rb5 50. Rxb5+ Kxb5 51. Rxa7 $18) 48. Kd2 {[%emt 0:00:00]} Rbc3 {[%emt 0:00:00]} 49. Rb8+ {[%emt 0:00:00]} Ka6 {[%emt 0:00:00]} (49... Kxa5 50. Ra1+) 50. Rf8 {[%emt 0:00:00]} Rc7 {[%emt 0:00:00]} (50... Kxa5 51. Rxf7 Rc7 52. Rxc7 Rxc7 53. Rxc2 $18) 51. Rxf7 {[%emt 0:00:00]} Rxf7 {[%emt 0:00:00]} 52. Kxc3 {[%emt 0:00:00]} Rxf2 {[%emt 0:00:00]} 53. Kb2 {[%emt 0:00:00]} (53. Rxc2 Rxc2+ 54. Kb4 h5 55. e4 Re2 56. Kc4 Rxe4+ 57. Kd3 Rg4 58. Ke3 Rxg3+ 59. Kf4 h4 60. Ke5 h3 (60... Kxa5 61. Kf5 h3 62. Kf4 Rb3 63. Kf5 h2 64. Kf6 h1=Q 65. Ke5 Re3+ 66. Kf4 Qg1 67. Kf5 Qf2+ 68. Kg4 Rg3+ 69. Kh5 Qh2#) 61. Kf5 h2 (61... Kxa5 62. Kf4 Rb3 63. Kf5 h2 64. Ke6 h1=Q 65. Ke5 Re3+ 66. Kf4 Qh3 67. Kg5 Rf3 68. Kg6 Qg4+ 69. Kh7 Rh3#) 62. Kf4 Rb3 (62... h1=R 63. Kxg3 Rf1 64. Kh3 Kxa5 65. Kh2 Kb4 66. Kg2 Rf7 67. Kh2 a5 68. Kh3 a4 69. Kg4 a3 70. Kh5 a2 71. Kg5 a1=Q 72. Kg6 Qg7+ 73. Kh5 Qg8 74. Kh6 Rh7#) 63. Kf5 h1=Q (63... h1=R 64. Kf4 Re1 65. Kf5 Rf3+ 66. Kg4 Rf8 67. Kh3 Re7 68. Kh4 Rg7 69. Kh5 Rh8#) 64. Ke5 Qh2+ (64... Kxa5 65. Kd4 Qd1+ 66. Ke4 Qe2+ 67. Kd5 Kb6 68. Kd4 Rd3+ 69. Kc4 Qe4#) 65. Kf5 Re3 (65... Kxa5 66. Kf6 Re3 67. Kg7 Rf3 68. Kg6 Qg2+ 69. Kh7 Rh3#) 66. Kg4 Qf2 (66... Kxa5 67. Kg5 Qf2 68. Kh6 Qg1 69. Kh7 Rh3#) 67. Kh5 Rg3 68. Kh6 Qh2#) 53... Rh2 {[%emt 0:00:00]} 54. Rg1 {[%emt 0:00:00]} (54. Rxc2 $2 Rxc2+ 55. Kxc2 Kxa5 $19) 54... h5 {[%emt 0:00:00]} 55. g4 {[%emt 0:00:00]} h4 {[%emt 0:00:00]} (55... Kxa5 $6 56. g5 (56. gxh5 Kb4 $11) 56... Rf2 57. g6 $16) 56. g5 $1 {[%emt 0:00:00]} Rd2 {[%emt 0:00:36]} (56... Kxa5 $2 {too greedy.} 57. g6 Rd2 58. g7 $18) (56... h3 $5 57. g6 $8 Rg2 $11 (57... Kxa5 $2 58. g7 $18)) 57. Rc1 {[%emt 0:04:15]} h3 {[%emt 0:05:02]} (57... Rg2 $5 58. Rh1 $8 Rxg5 (58... Kxa5 59. Rxh4 Rxg5 60. Kxc2 $11) 59. Rxh4 Re5 $17 (59... Rxa5 60. Kxc2 Ra3 61. Kd2 $11)) 58. g6 $1 {[%emt 0:00:10]} Rg2 {[%emt 0:00:43]} 59. Rh1 {[%emt 0:00:12]} h2 {[%emt 0:00:20]} 60. g7 $1 {[%emt 0:00:11]} Rxg7 {[%emt 0:00:34]} 1/2-1/2

[Event "Sardinia World Festival-A 2024"]
[Site "Orosei"]
[Date "2024.04.28"]
[Round "2.12"]
[White "Lodici, Lorenzo"]
[Black "Shohat, Yotam"]
[Result "1/2-1/2"]
[ECO "B90"]
[WhiteElo "2565"]
[BlackElo "2398"]
[Annotator "TA"]
[PlyCount "115"]
[EventDate "2024.04.26"]
[EventType "swiss"]
[EventCountry "ITA"]
[SourceTitle "playchess.com"]
[Source "ChessBase"]
[SourceQuality "1"]
[TimeControl "40/5400+30:1800+30"]

{[%evp 17,115,16,14,8,11,0,12,7,20,-17,-3,-11,-8,-30,-3,-22,0,0,12,12,12,12,12,0,0,6,0,-10,0,-5,0,-25,0,-21,-2,-39,0,-37,-12,-4,0,0,0,0,0,0,0,0,24,35,40,0,0,0,0,0,0,0,0,0,0,0,0,0,0,0,0,-8,0,0,0,0,0,-3,0,0,0,0,0,0,0,0,0,0,0,0,0,0,0,0,0,0,0,0,0,-8,-8,-8,-8,-8]} 1. e4 {[%emt 0:00:03]} c5 {[%emt 0:00:07]} 2. Nf3 {[%emt 0:00:04]} d6 {[%emt 0:00:04]} 3. d4 {[%emt 0:00:08]} cxd4 {[%emt 0:00:04]} 4. Nxd4 {[%emt 0:00:03]} Nf6 {[%emt 0:00:06]} 5. Nc3 {[%emt 0:00:03]} a6 {[%emt 0:00:05]} 6. Be3 {[%emt 0:00:09]} e5 {[%emt 0:00:39]} 7. Nf3 {[%emt 0:00:09]} Be7 {[%emt 0:00:24]} 8. Bc4 {[%emt 0:02:42]} O-O {[%emt 0:02:04]} 9. O-O {[%emt 0:00:05]} Be6 {[%emt 0:00:06]} 10. Qd3 {[%emt 0:02:41]} Nc6 {[%emt 0:03:40]} 11. Bg5 {[%emt 0:14:24]} Rc8 {[%emt 0:13:20] [#] White must now prevent ...Nb4.} 12. Bxf6 {[%emt 0:05:45]} Bxf6 {[%emt 0:00:37]} 13. Bxe6 {[%emt 0:09:31]} fxe6 {[%emt 0:00:03]} 14. Rad1 {[%emt 0:06:21]} Be7 {[%emt 0:03:02]} 15. Ne2 {[%emt 0:03:14]} Qb6 {[%emt 0:09:39]} 16. Rb1 {[%emt 0:02:16][%cal Ob2b4]} Qb5 {[%emt 1:04:30]} 17. c4 {[%emt 0:13:33]} Qa5 {[%emt 0:00:00]} 18. a3 {[%emt 0:06:41]} Qc7 {[%emt 0:00:00]} 19. b4 {[%emt 0:03:00]} Rf6 {[%emt 0:00:00]} 20. Ne1 {[%emt 0:03:50]} Nd4 {[%emt 0:00:00]} 21. Nxd4 {[%emt 0:01:53]} exd4 {[%emt 0:00:00]} 22. Rc1 {[%emt 0:07:02]} e5 {[%emt 0:00:00]} 23. Rc2 {[%emt 0:05:10]} Qd7 {[%emt 0:00:00]} 24. Nf3 {[%emt 0:03:39][%cal Be1f3,Bf3g1,Bg1e2,Be2g3,Bg3f5][%mdl 32]} Rg6 {[%emt 0:00:00]} 25. Kh1 {[%emt 0:04:13]} Rf8 {[%emt 0:00:00]} 26. Ng1 {[%emt 0:01:05][%cal Of2f4]} Qg4 {[%emt 0:00:00]} 27. g3 {[%emt 0:00:37] White is weak on the dark squares} h5 {[%emt 0:00:00]} 28. f3 {[%emt 0:01:33]} Qe6 {[%emt 0:00:00]} 29. f4 {[%emt 0:00:40] Repels Bg5} exf4 {[%emt 0:00:00]} 30. gxf4 {[%emt 0:00:01][%cal Of4f5] f5! would now be deadly.} Rg4 {[%emt 0:00:00]} 31. Ne2 {[%emt 0:01:09]} Bf6 {[%emt 0:00:00]} 32. Ng3 {[%emt 0:01:18]} g6 {[%emt 0:03:16] Prevents Nf5.} 33. f5 {[%emt 0:00:03]} gxf5 {[%emt 0:00:36]} 34. Rxf5 {[%emt 0:02:01]} (34. Nxf5 {simplifies} Qxe4+ 35. Qxe4 Rxe4 36. Nxd6 Re3 37. Rg2+) 34... Be5 {[%emt 0:02:03] The position is equal.} 35. Rcf2 {[%emt 0:00:13]} Rxf5 {[%emt 0:00:12]} 36. Nxf5 {[%emt 0:00:06]} Kh7 {[%emt 0:00:56]} 37. h3 {[%emt 0:01:37]} Rg5 {[%emt 0:00:37]} 38. Rg2 {[%emt 0:00:28]} Rxg2 {[%emt 0:01:47]} 39. Kxg2 $11 {[%emt 0:00:02][%mdl 4096] Endgame. KQB-KQN} Qg6+ {[%emt 0:00:38]} 40. Kf2 {[%emt 0:01:06] Active counter play!} Qg5 {[%emt 0:00:07]} 41. Ke2 {[%emt 0:07:51][%cal Od3f3]} Qg2+ {[%emt 0:05:36]} 42. Kd1 {[%emt 0:00:08]} Qb2 {[%emt 0:00:58]} 43. Ke1 {[%emt 0:02:37]} Qc1+ {[%emt 0:02:38]} 44. Ke2 {[%emt 0:01:46]} Qb2+ {[%emt 0:08:30]} 45. Kf1 {[%emt 0:00:09]} Qc1+ {[%emt 0:00:12]} 46. Kf2 {[%emt 0:00:03]} Qf4+ {[%emt 0:09:24]} 47. Ke2 {[%emt 0:00:28]} Qh2+ {[%emt 0:01:02]} 48. Kd1 {[%emt 0:00:05]} Qb2 {[%emt 0:00:10]} 49. c5 {[%emt 0:17:12]} dxc5 {[%emt 0:00:50]} 50. bxc5 {[%emt 0:00:41]} Qa1+ {[%emt 0:01:04]} 51. Ke2 {[%emt 0:00:09]} Qb2+ {[%emt 0:02:13]} 52. Qd2 {[%emt 0:00:48]} d3+ {[%emt 0:00:14]} (52... Qxa3 $2 {loses.} 53. Qh6+ (53. Nxd4 $2 {too greedy.} Qxh3 54. Qb4 Qg2+ 55. Kd3 Qf1+ 56. Ne2 Qf7 $19) 53... Kg8 54. Qe6+ (54. Qxh5 Qb2+ 55. Ke1 Qc1+ 56. Ke2 Qb2+ 57. Ke1 Qc1+ 58. Ke2 Qc2+ 59. Kf1 Qc4+ 60. Ke1 Qc3+ 61. Kf1 Qc4+ 62. Ke1 Qc3+ 63. Kf1 Qc1+ 64. Ke2 $11) 54... Kf8 55. Qe7+ (55. Qxe5 Qb2+ 56. Ke1 Qc1+ 57. Kf2 Qd2+ 58. Kf3 Qd1+ 59. Kg2 Qe2+ 60. Kg3 Qe1+ 61. Kf3 Qf1+ 62. Kg3 Qe1+ 63. Kg2 Qd2+ 64. Kf1 Qd1+ 65. Kf2 Qd2+ 66. Kf3 Qd3+ 67. Kf2 Qd2+ $11) 55... Kg8 56. Qe8+ (56. Qxe5 Qb2+ 57. Ke1 Qc3+ 58. Kd1 Qa1+ 59. Kd2 Qc3+ 60. Kd1 Qa1+ 61. Kd2 Qc3+ 62. Kd1 $11) (56. Qxb7 d3+ 57. Kf3 d2+ 58. Ke2 d1=B+ 59. Kxd1 Qxc5 $11) 56... Kh7 57. Qxh5+ (57. Qxe5 Qb2+ 58. Kf1 Qc1+ 59. Kf2 Qd2+ 60. Kf3 Qd1+ 61. Kf2 Qd2+ 62. Kf3 Qc3+ 63. Kf2 Qd2+ $11) 57... Kg8 58. Qe8+ Kh7 59. Qxe5 $18) 53. Kxd3 {[%emt 0:00:02] [#] And now Qxb2 would win.} Qb5+ {[%emt 0:00:24]} 54. Ke3 {[%emt 0:02:26] Threatens to win with Qd5.} Qxc5+ {[%emt 0:00:09]} 55. Ke2 {[%emt 0:00:17]} Qb5+ {[%emt 0:00:30]} 56. Kf2 {[%emt 0:01:23]} Qb2 {[%emt 0:00:55]} 57. Qxb2 {[%emt 0:00:06]} Bxb2 {[%emt 0:00:02]} 58. a4 {[%emt 0:00:03] Weighted Error Value: White=0.07 (flawless) /Black=0.04 (flawless) .  Inaccurate:     	White=4     	Black=2      OK:         	White=15    	Black=22     Best:        	White=4     	Black=1} 1/2-1/2

[Event "Sardinia World Festival-A 2024"]
[Site "Orosei"]
[Date "2024.04.28"]
[Round "2.13"]
[White "Savitha Shri B"]
[Black "Sonis, Francesco"]
[Result "0-1"]
[ECO "B90"]
[WhiteElo "2363"]
[BlackElo "2562"]
[Annotator "TA"]
[PlyCount "88"]
[EventDate "2024.04.26"]
[EventType "swiss"]
[EventCountry "ITA"]
[SourceTitle "playchess.com"]
[Source "ChessBase"]
[SourceQuality "1"]
[TimeControl "40/5400+30:1800+30"]

{[%evp 12,88,23,12,8,8,27,0,0,-32,-40,-37,-43,-54,0,-48,0,0,37,37,39,31,46,0,0,0,45,0,0,-50,-18,-123,-120,-133,-101,-100,-91,-90,-90,-113,-106,-104,-73,-118,-127,-127,-107,-165,-70,-76,-44,-56,-45,-120,-93,-106,-85,-93,-88,-92,-76,-77,-77,-85,-77,-119,-126,-157,-151,-187,-187,-260,-269,-415,-417,-392,-432,-29987,-29988]} 1. e4 {[%emt 0:00:23]} c5 {[%emt 0:00:11]} 2. Nf3 {[%emt 0:00:05]} d6 {[%emt 0:00:09]} 3. d4 {[%emt 0:00:38]} cxd4 {[%emt 0:00:07]} 4. Nxd4 {[%emt 0:00:04]} Nf6 {[%emt 0:00:09]} 5. Nc3 {[%emt 0:00:05]} a6 {[%emt 0:00:07]} 6. h3 {[%emt 0:01:08]} e5 {[%emt 0:01:27]} 7. Nb3 {[%emt 0:00:17]} Be7 {[%emt 0:01:48]} 8. Be3 {[%emt 0:00:07]} h6 {[%emt 0:00:08]} 9. Qf3 {[%emt 0:01:37]} b5 {[%emt 0:00:34] The position is equal.} 10. O-O-O {[%emt 0:07:01]} b4 {[%emt 0:08:40]} 11. Nd5 {[%emt 0:09:43]} Nxd5 {[%emt 0:00:06]} 12. exd5 {[%emt 0:00:17]} a5 {[%emt 0:05:39]} (12... O-O $1 $15) 13. Nd2 {[%emt 0:06:14]} (13. Qg3 $11) 13... Qc7 {[%emt 0:12:12]} (13... O-O $1 $15 {was preferrable.}) 14. Kb1 {[%emt 0:04:04]} Nd7 {[%emt 0:04:54]} 15. Qg3 {[%emt 0:05:43]} Kf8 {[%emt 0:07:08]} 16. f4 {[%emt 0:08:13]} Bb7 {[%emt 0:01:04]} 17. Nc4 {[%emt 0:02:07]} (17. fxe5 $1 $14 {deserves consideration.} Nxe5 18. Bd3) 17... Ba6 $11 {[%emt 0:14:14]} 18. b3 {[%emt 0:01:47]} e4 {[%emt 0:03:02]} 19. Bd4 {[%emt 0:05:34]} (19. Nd2 $5) 19... Bf6 {[%emt 0:00:13]} 20. f5 {[%emt 0:03:48]} (20. Qe3 $11) 20... Bxc4 $15 {[%emt 0:04:26]} 21. Bxf6 {[%emt 0:00:51]} (21. Bxc4 $11 Bxd4 22. Rxd4) 21... Nxf6 $17 {[%emt 0:00:18]} 22. Bxc4 {[%emt 0:00:10]} Re8 {[%emt 0:02:48]} 23. Qe3 {[%emt 0:03:31]} Re5 {[%emt 0:00:58]} 24. g4 {[%emt 0:06:42] [#]} Ke7 $1 {[%emt 0:05:09]} 25. Rhe1 {[%emt 0:04:52]} Rc8 {[%emt 0:00:29]} 26. Re2 {[%emt 0:16:04]} Qc5 {[%emt 0:01:24]} 27. Rd4 {[%emt 0:02:35]} Kf8 {[%emt 0:02:56][%cal Oc8e8] White is weak on the dark squares} (27... Nxd5 28. Bxd5 Rxd5 29. Rxe4+ Re5 (29... Kf6 $2 30. g5+ Kxf5 31. Rf4+ Kg6 32. Qe4+ Rf5 33. Ref2 $18) 30. Rxe5+ dxe5 31. Qxe5+ Kf8 32. Qxc5+ Rxc5 33. c4 bxc3 34. Kc2 $16) 28. Kb2 {[%emt 0:01:45]} Rce8 {[%emt 0:01:08][%cal Oh6h5]} (28... Nxd5 $2 29. Bxd5 a4 (29... Rxd5 $2 30. Rc4 $18) 30. Rc4 (30. Bxe4 d5 $18) 30... Rxd5 (30... a3+ $2 31. Kc1 $18) 31. Rxc5 $18) 29. Re1 {[%emt 0:02:59]} (29. Rdd2 $17) 29... Nd7 {[%emt 0:02:26]} (29... Nxd5 30. Bxd5 (30. Rxd5 $2 Rxd5 31. Bxd5 Qxd5 $19) 30... Rxd5 31. Rxe4 Qxe3 32. R1xe3 $17) ({Black should try} 29... h5 $19 30. g5 Nxd5 31. Bxd5 (31. Rxd5 $2 Rxd5 32. Bxd5 Qxd5 $19) 31... Rxd5 32. Rxe4 Qxe3 33. R1xe3 Rxe4 34. Rxe4 Rxf5) 30. Rdd1 {[%emt 0:01:04]} Rc8 {[%emt 0:04:10]} 31. Qxc5 {[%emt 0:00:56]} Nxc5 {[%emt 0:00:34]} 32. Re3 {[%emt 0:02:04] [#]} ({White should play} 32. a3 $15) 32... Ke7 $1 {[%emt 0:00:32]} 33. a3 {[%emt 0:00:48]} Kf6 {[%emt 0:00:22][%cal Oh6h5]} 34. axb4 {[%emt 0:00:34]} axb4 {[%emt 0:00:04]} 35. c3 {[%emt 0:01:07]} bxc3+ {[%emt 0:01:09]} 36. Kxc3 {[%emt 0:00:17]} Re7 {[%emt 0:00:55]} 37. Kd4 {[%emt 0:02:01]} Rb7 {[%emt 0:01:36]} 38. h4 {[%emt 0:00:04]} Rb4 {[%emt 0:00:35][%cal Oc5b3] Strongly threatening ...Nxb3+!} 39. Kc3 {[%emt 0:01:48]} Rcb8 {[%emt 0:00:04][%cal Rc5b3]} 40. Kc2 {[%emt 0:00:38]} Ke5 $36 {[%emt 0:00:33][%mdl 2048] Black is on the roll.} 41. Rf1 {[%emt 0:01:29]} (41. Rde1 $142) 41... Kd4 $19 {[%emt 0:06:06]} 42. Rg3 {[%emt 0:06:18]} (42. Rc3 $142) 42... Nd3 {[%emt 0:01:39]} ({Less strong is} 42... Ra8 43. Rd1+ Ke5 44. f6 $19) 43. Rb1 {[%emt 0:04:19][%cal Rc4d3]} ({Much weaker is} 43. Bxd3 Rxb3 44. Bxe4 Rxg3 $19) 43... Rc8 {[%emt 0:00:45]} 44. Rd1 {[%emt 0:01:09]} (44. Rg2 $19) 44... Rcxc4+ {[%emt 0:00:06] Weighted Error Value: White=0.40/Black=0.13 (very precise) .  Mistake:       	White=9     	Black=3      Inaccurate:     	White=5     	Black=3      OK:         	White=12    	Black=14     Best:        	White=1     	Black=7      Strong:       	---       	Black=2} 0-1